bitfinex/quotes_SOLUSD_20260211
["timestamp","ask_amount","ask_price","bid_price","bid_amount"]
[1770823168316,0.48257832,79.652,79.591,0.45158843]
[1770823168507,20.24850903,79.63,79.592,43.97426876]
[1770823168890,20.24850903,79.62,79.588,37.82]
[1770823169192,20.24850903,79.61,79.571,0.45158843]
[1770823169504,20.24850903,79.62,79.581,0.45158843]
[1770823169707,20.24850903,79.61,79.581,0.45158843]
[1770823170096,20.24850903,79.62,79.581,0.45158843]
[1770823170312,20.24850903,79.61,79.581,0.45158843]
[1770823170510,20.24850903,79.62,79.583,0.45158843]
[1770823170814,20.24850903,79.6,79.577,12.56644507]
[1770823171111,20.24850903,79.59,79.577,12.56644507]
[1770823171313,20.24850903,79.59,79.566,0.45158843]
[1770823171511,5.36086188,79.617,79.411,75.55576239]
[1770823171512,20.24850903,79.58,79.536,0.45158843]
[1770823171714,20.24850903,79.56,79.525,44.01131718]
[1770823172294,4.61729252,79.587,79.525,44.01131718]
[1770823172295,20.24850903,79.55,79.525,12.57466205]
[1770823172598,20.24850903,79.54,79.505,12.57769001]
[1770823172808,20.24850903,79.55,79.511,0.45158843]
[1770823173095,20.24850903,79.52,79.477,0.45158843]
[1770823173293,20.24850903,79.52,79.443,50.35022188]
[1770823173294,20.24850903,79.5,79.463,0.45158843]
[1770823173525,20.24850903,79.49,79.449,0.45158843]
[1770823173822,20.24850903,79.47,79.46,12.78487643]
[1770823174026,0.48257832,79.489,79.46,0.2]
[1770823174314,0.48257832,79.523,79.471,0.45158843]
[1770823174506,20.24850903,79.51,79.473,0.45158843]
[1770823175013,0.48257832,79.523,79.46,0.2]
[1770823175014,20.24850903,79.48,79.46,0.2]
[1770823175397,20.24850903,79.47,79.46,0.2]
[1770823175592,20.24850903,79.47,79.429,0.45158843]
[1770823175820,20.24850903,79.46,79.431,0.45158843]
[1770823176115,20.24850903,79.45,79.417,0.45158843]
[1770823176502,20.24850903,79.46,79.423,0.45158843]
[1770823176710,13.06658539,79.466,79.423,0.45158843]
[1770823176916,20.24850903,79.45,79.423,0.45158843]
[1770823177217,20.24850903,79.45,79.41,20.24850903]
[1770823177416,20.24850903,79.42,79.379,0.45158843]
[1770823177609,20.24850903,79.41,79.379,0.45158843]
[1770823177808,0.48257832,79.433,79.38,20.24850903]
[1770823178011,20.24850903,79.43,79.401,12.59429981]
[1770823178314,20.24850903,79.46,79.421,0.45158843]
[1770823178515,20.24850903,79.44,79.405,12.59366538]
[1770823178695,105.27534452,79.477,79.4,0.2]
[1770823178696,20.24850903,79.42,79.4,0.2]
[1770823178898,20.24850903,79.41,79.4,0.2]
[1770823179114,20.24850903,79.41,79.374,0.45158843]
[1770823179304,20.24850903,79.4,79.371,12.59906011]
[1770823179507,20.24850903,79.4,79.37,0.2]
[1770823179707,0.48257832,79.418,79.37,0.2]
[1770823179708,20.24850903,79.41,79.372,0.45158843]
[1770823180022,20.24850903,79.42,79.372,0.45158843]
[1770823180203,12.5877999,79.442,79.391,0.45158843]
[1770823180401,20.24850903,79.44,79.401,0.45158843]
[1770823180606,20.24850903,79.44,79.402,12.5941412]
[1770823180800,20.24850903,79.43,79.402,12.5941412]
[1770823181005,20.24850903,79.44,79.402,44.07949421]
[1770823181422,12.58193988,79.479,79.431,0.45158843]
[1770823181720,20.24850903,79.46,79.43,37.9]
[1770823181905,20.73108735,79.47,79.43,37.9]
[1770823182106,20.24850903,79.49,79.451,0.45158843]
[1770823182307,20.24850903,79.5,79.461,0.45158843]
[1770823182506,20.24850903,79.51,79.471,0.45158843]
[1770823182702,0.48257832,79.546,79.481,0.45158843]
[1770823182910,20.24850903,79.53,79.49,20.24850903]
[1770823183218,0.48257832,79.545,79.49,20.24850903]
[1770823183425,20.24850903,79.55,79.51,20.24850903]
[1770823183615,20.24850903,79.55,79.502,0.45158843]
[1770823184009,20.24850903,79.54,79.502,0.45158843]
[1770823184210,0.48257832,79.592,79.521,0.45158843]
[1770823184416,20.24850903,79.56,79.521,0.45158843]
[1770823184604,20.24850903,79.56,79.512,0.45158843]
[1770823184927,4.61729252,79.577,79.511,12.57687615]
[1770823184928,20.24850903,79.54,79.511,12.57687615]
[1770823185112,20.24850903,79.55,79.512,0.45158843]
[1770823185425,20.24850903,79.54,79.512,0.45158843]
[1770823185625,20.24850903,79.53,79.495,12.57931324]
[1770823185833,20.24850903,79.52,79.486,50.50073102]
[1770823186023,20.24850903,79.51,79.486,50.50073102]
[1770823186326,20.24850903,79.52,79.486,50.50073102]
[1770823186525,20.24850903,79.53,79.487,0.45158843]
[1770823186716,20.24850903,79.53,79.491,0.45158843]
[1770823186921,0.48257832,79.499,79.448,0.45158843]
[1770823187103,0.48257832,79.499,79.433,13.04081457]
[1770823187304,20.24850903,79.46,79.433,12.58922614]
[1770823187504,20.24850903,79.45,79.42,37.96]
[1770823187803,20.24850903,79.44,79.408,12.5931896]
[1770823188125,20.24850903,79.45,79.41,20.24850903]
[1770823188336,20.24850903,79.45,79.411,0.45158843]
[1770823188529,20.24850903,79.46,79.421,0.45158843]
[1770823188714,20.24850903,79.46,79.423,0.45158843]
[1770823189117,12.58434993,79.464,79.411,0.45158843]
[1770823189326,20.24850903,79.46,79.421,0.45158843]
[1770823189630,20.24850903,79.45,79.404,0.45158843]
[1770823189932,5.36086188,79.481,79.402,44.07949421]
[1770823189933,0.48257832,79.499,79.441,0.45158843]
[1770823190238,20.24850903,79.48,79.442,38.5]
[1770823190406,20.24850903,79.47,79.441,38.56]
[1770823190729,20.24850903,79.45,79.415,38.56]
[1770823191028,20.24850903,79.48,79.43,20.73118333]
[1770823191204,20.24850903,79.48,79.44,20.24850903]
[1770823191407,20.24850903,79.49,79.441,0.4826743]
[1770823191627,20.24850903,79.49,79.44,20.24850903]
[1770823191628,20.24850903,79.49,79.443,0.4826743]
[1770823191832,20.24850903,79.51,79.461,0.4826743]
[1770823192038,20.24850903,79.51,79.442,38.56]
[1770823192039,20.24850903,79.5,79.45,20.24850903]
[1770823192227,20.24850903,79.48,79.442,38.56]
[1770823192537,20.73714094,79.49,79.442,38.56]
[1770823192732,20.24850903,79.48,79.443,44.05674508]
[1770823193239,0.48863191,79.482,79.443,44.05674508]
[1770823193434,20.24850903,79.48,79.443,44.05674508]
[1770823194333,12.58035703,79.489,79.429,39.0226743]
[1770823194334,20.24850903,79.46,79.433,12.58922614]
[1770823194514,0.48863191,79.469,79.433,44.06229149]
[1770823194922,20.24850903,79.48,79.433,44.06229149]
[1770823195223,0.48863191,79.479,79.434,0.4826743]
[1770823195617,0.48863191,79.479,79.433,44.06229149]
[1770823195618,20.24850903,79.47,79.433,44.06229149]
[1770823195819,20.73714094,79.47,79.433,44.06229149]
[1770823196341,0.48863191,79.439,79.39,20.73118333]
[1770823196526,20.24850903,79.44,79.4,20.24850903]
[1770823197243,20.24850903,79.44,79.401,44.08004935]
[1770823197541,20.24850903,79.42,79.401,12.59429981]
[1770823198236,0.48863191,79.426,79.401,12.59429981]
[1770823198441,20.24850903,79.42,79.401,12.59429981]
[1770823198644,20.24850903,79.42,79.379,38.56]
[1770823198645,0.48863191,79.419,79.396,12.5950196]
[1770823198944,0.48863191,79.479,79.414,0.4826743]
[1770823199122,0.48863191,79.479,79.431,0.4826743]
[1770823199439,20.24850903,79.46,79.432,12.58938463]
[1770823199642,20.73714094,79.46,79.432,12.58938463]
[1770823199847,20.73714094,79.46,79.415,38.54]
[1770823199848,20.24850903,79.44,79.415,12.59196151]
[1770823200137,0.48863191,79.449,79.402,44.07949421]
[1770823200340,20.24850903,79.44,79.402,44.07949421]
[1770823200546,0.48863191,79.439,79.402,44.07949421]
[1770823200737,0.48863191,79.439,79.398,38.56]
[1770823200738,20.24850903,79.42,79.398,38.56]
[1770823200932,20.24850903,79.42,79.392,12.59562049]
[1770823201137,0.48863191,79.399,79.374,12.59848198]
[1770823201536,0.48863191,79.431,79.375,0.4826743]
[1770823201844,20.24850903,79.44,79.391,0.4826743]
[1770823202028,20.24850903,79.44,79.401,0.4826743]
[1770823202229,36.02,79.462,79.421,0.4826743]
[1770823202421,0.48863191,79.439,79.39,0.4826743]
[1770823202742,0.48863191,79.429,79.377,0.4826743]
[1770823202938,0.48863191,79.458,79.41,20.24850903]
[1770823203138,20.24850903,79.48,79.431,0.4826743]
[1770823203345,0.48863191,79.449,79.403,0.4826743]
[1770823203555,0.48863191,79.449,79.404,12.59382398]
[1770823203741,0.48863191,79.449,79.404,44.07838395]
[1770823203928,0.48863191,79.449,79.379,50.39080493]
[1770823203929,20.24850903,79.43,79.397,12.59487356]
[1770823204246,0.48863191,79.447,79.401,0.4826743]
[1770823204431,20.73714094,79.44,79.397,44.08220935]
[1770823205143,20.73714094,79.42,79.375,12.59842519]
[1770823205328,36.04,79.468,79.375,12.59842519]
[1770823205329,20.24850903,79.43,79.39,20.24850903]
[1770823205530,20.24850903,79.44,79.4,20.24850903]
[1770823205752,20.24850903,79.44,79.401,0.4826743]
[1770823205939,0.48863191,79.439,79.39,20.24850903]
[1770823206138,20.24850903,79.43,79.389,0.4826743]
[1770823206326,20.24850903,79.44,79.39,20.24850903]
[1770823206530,36.50863191,79.443,79.391,0.4826743]
[1770823206531,20.24850903,79.43,79.391,0.4826743]
[1770823206737,36.02,79.443,79.401,0.4826743]
[1770823206950,20.24850903,79.43,79.401,0.4826743]
[1770823207253,20.24850903,79.43,79.397,38.54]
[1770823207434,12.58986012,79.429,79.391,12.59588618]
[1770823207632,20.24850903,79.43,79.391,12.59588618]
[1770823207829,0.48863191,79.419,79.391,12.59588618]
[1770823208035,20.24850903,79.43,79.391,12.59588618]
[1770823208256,20.24850903,79.42,79.391,12.59588618]
[1770823208431,20.24850903,79.41,79.382,12.59731425]
[1770823208627,20.24850903,79.43,79.39,20.24850903]
[1770823208830,20.24850903,79.44,79.4,20.24850903]
[1770823209040,20.73714094,79.44,79.39,20.73118333]
[1770823209242,20.24850903,79.44,79.39,20.73118333]
[1770823209441,12.58986012,79.429,79.391,12.59588618]
[1770823209659,20.73714094,79.42,79.39,0.4826743]
[1770823209964,20.24850903,79.42,79.39,13.07870217]
[1770823210134,0.48863191,79.419,79.39,0.4826743]
[1770823210339,0.48863191,79.419,79.37,20.44850903]
[1770823210340,0.48863191,79.399,79.37,0.2]
[1770823210644,0.48863191,79.399,79.37,12.79912981]
[1770823210844,0.48863191,79.399,79.37,44.29717693]
[1770823211046,0.48863191,79.399,79.37,0.2]
[1770823211335,35.96,79.41,79.371,44.09671038]
[1770823211538,0.48863191,79.409,79.371,44.09671038]
[1770823211740,20.24850903,79.42,79.38,20.24850903]
[1770823212045,0.48863191,79.423,79.38,20.24850903]
[1770823212353,0.48863191,79.423,79.371,44.09671038]
[1770823212354,20.24850903,79.42,79.371,44.09671038]
[1770823212559,0.48863191,79.409,79.371,44.09671038]
[1770823212939,0.48863191,79.409,79.371,12.59906011]
[1770823213259,0.48863191,79.379,79.342,12.60366514]
[1770823213571,0.48863191,79.368,79.331,44.11856613]
[1770823213857,20.24850903,79.36,79.33,0.2]
[1770823214032,0.48863191,79.359,79.33,0.2]
[1770823214232,0.48863191,79.349,79.33,0.2]
[1770823214437,4.61729252,79.367,79.293,31.52847783]
[1770823214438,0.48863191,79.339,79.293,31.52847783]
[1770823214638,0.48863191,79.329,79.294,12.61129467]
[1770823214939,20.24850903,79.32,79.294,12.61129467]
[1770823215134,0.48863191,79.329,79.294,12.61129467]
[1770823215363,0.48863191,79.329,79.294,44.13953135]
[1770823215542,12.60588947,79.328,79.294,12.61129467]
[1770823216160,20.24850903,79.36,79.311,0.4826743]
[1770823216334,13.08673967,79.377,79.321,0.4826743]
[1770823216681,32.84298698,79.4,79.351,0.4826743]
[1770823216849,32.84298698,79.4,79.36,20.24850903]
[1770823217036,4.61729252,79.417,79.359,38.5]
[1770823217037,0.48863191,79.407,79.359,38.5]
[1770823217245,20.24850903,79.4,79.36,20.24850903]
[1770823217447,0.48863191,79.407,79.36,20.24850903]
[1770823217648,0.48863191,79.389,79.342,0.4826743]
[1770823217836,0.48863191,79.389,79.341,0.4826743]
[1770823218041,0.48863191,79.389,79.35,20.24850903]
[1770823218257,0.48863191,79.404,79.36,20.24850903]
[1770823218461,20.24850903,79.4,79.36,20.24850903]
[1770823218660,20.24850903,79.4,79.342,38.5]
[1770823218661,0.48863191,79.389,79.342,38.5]
[1770823219047,0.48863191,79.389,79.331,12.60541276]
[1770823219048,20.24850903,79.37,79.331,12.60541276]
[1770823219239,20.24850903,79.37,79.327,12.60604263]
[1770823219445,20.24850903,79.36,79.319,38.48]
[1770823219661,20.24850903,79.35,79.319,38.48]
[1770823219863,12.60096523,79.359,79.321,0.4826743]
[1770823220267,12.59953633,79.368,79.33,20.24850903]
[1770823220462,12.59859063,79.374,79.331,0.49921438]
[1770823220667,12.59796277,79.378,79.341,0.49921438]
[1770823220859,12.59697003,79.385,79.35,20.24850903]
[1770823221054,35.86,79.387,79.36,20.24850903]
[1770823221252,12.59538601,79.395,79.36,20.24850903]
[1770823221444,35.86,79.409,79.36,20.24850903]
[1770823221645,20.24850903,79.4,79.361,12.60064767]
[1770823222148,12.58764145,79.443,79.391,0.49921438]
[1770823222350,12.58764145,79.443,79.41,20.24850903]
[1770823222548,12.58764145,79.443,79.392,38.46]
[1770823222549,0.48699978,79.439,79.4,20.24850903]
[1770823222748,20.73550881,79.43,79.385,38.46]
[1770823223073,44.05341791,79.449,79.385,38.46]
[1770823223074,12.58669083,79.449,79.41,20.74772341]
[1770823223469,20.24850903,79.44,79.394,38.46]
[1770823223771,20.24850903,79.44,79.4,20.24850903]
[1770823224075,0.48699978,79.439,79.393,12.59556887]
[1770823224371,20.24850903,79.42,79.385,12.59683819]
[1770823224573,20.24850903,79.43,79.39,20.24850903]
[1770823224750,20.24850903,79.41,79.375,38.44]
[1770823224952,20.24850903,79.43,79.39,20.24850903]
[1770823225161,35.86,79.432,79.376,12.59826647]
[1770823225162,20.24850903,79.4,79.376,12.59826647]
[1770823225354,20.24850903,79.43,79.39,20.24850903]
[1770823225558,35.86,79.432,79.4,20.24850903]
[1770823225768,20.24850903,79.43,79.397,12.59488896]
[1770823226156,0.48699978,79.468,79.411,0.49921438]
[1770823226357,12.58146498,79.482,79.4,20.24850903]
[1770823226358,0.48648497,79.449,79.4,20.24850903]
[1770823226563,0.48648497,79.449,79.41,20.24850903]
[1770823226761,20.24850903,79.44,79.401,0.46984204]
[1770823227069,0.48648497,79.449,79.401,0.46984204]
[1770823227275,0.48648497,79.429,79.39,20.3780518]
[1770823227454,0.48648497,79.429,79.387,0.46984204]
[1770823227661,0.48648497,79.429,79.39,20.3780518]
[1770823228062,12.58669083,79.449,79.41,20.3780518]
[1770823228369,0.48648497,79.478,79.421,0.46984204]
[1770823228576,50.31523496,79.499,79.45,20.3780518]
[1770823228577,20.3780518,79.49,79.45,20.3780518]
[1770823228758,20.3780518,79.48,79.441,0.46984204]
[1770823229161,20.3780518,79.47,79.43,20.3780518]
[1770823229582,0.48648497,79.459,79.397,0.46984204]
[1770823229762,20.3780518,79.44,79.4,20.3780518]
[1770823229967,12.58827528,79.439,79.401,12.59429981]
[1770823230476,20.3780518,79.44,79.4,20.3780518]
[1770823230677,12.58759134,79.444,79.401,0.46984204]
[1770823230867,12.58759134,79.444,79.374,50.39380374]
[1770823230868,0.48648497,79.431,79.378,0.46984204]
[1770823231181,20.3780518,79.42,79.38,20.3780518]
[1770823231383,4.61729252,79.437,79.378,0.46984204]
[1770823231580,20.3780518,79.41,79.373,12.59873209]
[1770823231783,20.3780518,79.39,79.35,0.46984204]
[1770823231968,20.3780518,79.39,79.351,44.10782472]
[1770823232175,32.97421982,79.39,79.351,44.10782472]
[1770823232370,35.74,79.4,79.36,20.3780518]
[1770823232575,35.74,79.4,79.361,0.46984204]
[1770823232576,56.1180518,79.4,79.361,0.46984204]
[1770823232778,20.3780518,79.39,79.351,12.60223563]
[1770823232990,20.3780518,79.39,79.351,44.10782472]
[1770823233200,20.3780518,79.39,79.351,12.60223563]
[1770823233666,20.3780518,79.39,79.319,50.42892692]
[1770823233667,20.3780518,79.37,79.332,12.60525386]
[1770823233867,20.3780518,79.36,79.332,12.60525386]
[1770823234082,20.3780518,79.34,79.304,44.13396549]
[1770823234304,20.3780518,79.35,79.31,20.3780518]
[1770823234468,20.3780518,79.35,79.305,0.46984204]
[1770823234669,0.48648497,79.353,79.292,0.46984204]
[1770823234889,44.10337831,79.359,79.3,20.3780518]
[1770823234890,0.48648497,79.339,79.3,20.3780518]
[1770823235273,20.3780518,79.34,79.296,38.38]
[1770823235274,20.86453677,79.34,79.296,38.38]
[1770823235463,20.86453677,79.34,79.291,44.61104342]
[1770823235669,20.86453677,79.34,79.3,20.3780518]
[1770823235872,20.3780518,79.33,79.291,12.61177182]
[1770823236080,12.60573056,79.329,79.291,12.61177182]
[1770823236415,20.86453677,79.33,79.29,58.9580518]
[1770823236573,12.60573056,79.329,79.291,12.61177182]
[1770823236907,20.3780518,79.32,79.29,38.58]
[1770823237091,20.3780518,79.31,79.29,0.2]
[1770823237490,0.48648497,79.337,79.3,20.3780518]
[1770823237714,20.3780518,79.31,79.29,0.2]
[1770823237902,0.48648497,79.319,79.29,0.2]
[1770823238093,44.113384,79.341,79.29,0.2]
[1770823238094,0.48648497,79.341,79.301,12.61018146]
[1770823238300,20.3780518,79.32,79.291,0.46984204]
[1770823238607,20.3780518,79.32,79.292,12.61161277]
[1770823238808,0.48648497,79.343,79.3,20.3780518]
[1770823239001,56.1380518,79.35,79.31,20.3780518]
[1770823239321,20.3780518,79.36,79.31,58.8180518]
[1770823239489,20.3780518,79.36,79.32,20.3780518]
[1770823239690,20.3780518,79.35,79.31,38.44]
[1770823239891,20.3780518,79.36,79.32,20.3780518]
[1770823240193,20.3780518,79.35,79.311,44.13007022]
[1770823240806,20.3780518,79.35,79.291,0.46984204]
[1770823240807,0.48648497,79.319,79.292,12.61161277]
[1770823241206,56.1180518,79.33,79.292,12.61161277]
[1770823241399,0.48648497,79.319,79.292,12.61161277]
[1770823241710,20.3780518,79.32,79.291,0.46984204]
[1770823242007,36.22648497,79.33,79.291,13.08159716]
[1770823242307,36.22648497,79.33,79.291,44.61102672]
[1770823242719,31.50657998,79.349,79.291,44.61102672]
[1770823242720,20.3780518,79.35,79.31,20.3780518]
[1770823242935,13.09250825,79.36,79.316,0.46984204]
[1770823243216,13.09250825,79.35,79.303,0.46984204]
[1770823243419,13.09250825,79.35,79.31,13.09250825]
[1770823243603,13.09250825,79.35,79.311,0.46984204]
[1770823243918,13.09250825,79.33,79.291,44.14118468]
[1770823244414,17.70980077,79.35,79.301,0.46984204]
[1770823244615,13.09250825,79.33,79.291,44.14118468]
[1770823245107,44.10726887,79.352,79.301,0.46984204]
[1770823245108,4.61729252,79.349,79.301,0.46984204]
[1770823245314,13.09250825,79.34,79.301,0.46984204]
[1770823245819,35.68,79.351,79.321,0.46984204]
[1770823246493,31.49610693,79.375,79.291,208.09421843]
[1770823246494,13.09250825,79.37,79.33,13.56235029]
[1770823246809,13.09250825,79.36,79.322,44.12395047]
[1770823246986,35.68,79.365,79.322,44.59379251]
[1770823247192,13.09250825,79.4,79.351,0.46984204]
[1770823247489,13.09250825,79.4,79.322,208.01290938]
[1770823247490,12.58716612,79.446,79.391,0.46984204]
[1770823247690,13.09250825,79.44,79.4,13.09250825]
[1770823247894,13.07365109,79.446,79.4,13.09250825]
[1770823248132,13.09250825,79.43,79.392,38.36]
[1770823248307,12.58716612,79.446,79.401,0.46984204]
[1770823248498,12.58716612,79.446,79.352,5.36086188]
[1770823248499,0.48648497,79.487,79.431,0.46984204]
[1770823248700,13.09250825,79.48,79.431,0.46984204]
[1770823248899,20.34802629,79.5,79.455,0.46984204]
[1770823249104,20.34802629,79.48,79.44,20.34802629]
[1770823249511,20.34802629,79.47,79.43,20.34802629]
[1770823249713,20.34802629,79.46,79.42,20.34802629]
[1770823250217,20.83451126,79.47,79.42,20.34802629]
[1770823250420,12.58510678,79.459,79.413,12.59239671]
[1770823250713,35.66,79.464,79.42,20.83889631]
[1770823250918,20.34802629,79.45,79.413,44.07338848]
[1770823251118,20.34802629,79.44,79.411,12.59269815]
[1770823251420,20.34802629,79.43,79.395,12.59525159]
[1770823251614,20.34802629,79.42,79.379,31.49430956]
[1770823251917,20.34802629,79.44,79.391,0.49087002]
[1770823252215,35.66,79.444,79.373,75.59245586]
[1770823252216,20.34802629,79.41,79.373,12.59874264]
[1770823252401,55.98802629,79.42,79.38,20.34802629]
[1770823252602,20.34802629,79.41,79.381,12.59747294]
[1770823252803,20.34802629,79.44,79.401,0.49087002]
[1770823253012,20.34802629,79.44,79.391,0.49087002]
[1770823253314,20.34802629,79.43,79.391,0.49087002]
[1770823253518,20.34802629,79.44,79.4,20.83889631]
[1770823253716,20.34802629,79.43,79.4,0.49087002]
[1770823254117,12.58730397,79.446,79.4,20.83889631]
[1770823254322,20.34802629,79.42,79.4,0.49087002]
[1770823254524,20.34802629,79.43,79.401,12.59429981]
[1770823254722,20.34802629,79.43,79.4,0.49087002]
[1770823254930,20.34802629,79.42,79.4,0.49087002]
[1770823255216,20.34802629,79.43,79.4,0.49087002]
[1770823255395,0.08477478,79.397,79.254,37.98]
[1770823255599,20.34802629,79.34,79.31,0.2]
[1770823256213,20.34802629,79.37,79.32,20.34802629]
[1770823256403,35.94,79.369,79.31,0.2]
[1770823256597,12.59880033,79.373,79.33,20.34802629]
[1770823257201,20.34802629,79.35,79.311,12.60859149]
[1770823257400,20.34802629,79.35,79.31,20.54802629]
[1770823257401,20.34802629,79.33,79.31,0.2]
[1770823257620,20.34802629,79.32,79.31,0.11522522]
[1770823257821,4.61729252,79.357,79.311,0.5]
[1770823258116,4.61729252,79.357,79.31,0.11522522]
[1770823258117,20.34802629,79.33,79.31,0.11522522]
[1770823258299,20.34802629,79.32,79.31,0.11522522]
[1770823258624,20.34802629,79.32,79.23,20.34802629]
[1770823258625,5.36086188,79.311,79.23,20.34802629]
[1770823258922,245.84273624,79.319,79.231,0.5]
[1770823258923,20.34802629,79.27,79.231,0.5]
[1770823259417,20.34802629,79.28,79.241,0.5]
[1770823259806,20.34802629,79.27,79.241,0.5]
[1770823260203,35.92,79.282,79.241,0.5]
[1770823260400,20.34802629,79.27,79.227,0.5]
[1770823260632,12.61527204,79.269,79.23,20.84802629]
[1770823260827,20.34802629,79.26,79.23,0.5]
[1770823261019,35.92,79.282,79.231,0.5]
[1770823261320,50.43493878,79.311,79.261,0.5]
[1770823261321,20.34802629,79.3,79.261,0.5]
[1770823261626,20.34802629,79.29,79.241,0.5]
[1770823261924,20.34802629,79.27,79.241,0.5]
[1770823262110,5.36086188,79.296,79.228,12.62180037]
[1770823262111,20.34802629,79.26,79.228,12.62180037]
[1770823262822,20.34802629,79.24,79.177,0.5]
[1770823263026,20.34802629,79.25,79.201,0.5]
[1770823263320,20.34802629,79.23,79.195,0.5]
[1770823263514,20.34802629,79.24,79.201,0.5]
[1770823263822,20.34802629,79.24,79.194,38.56]
[1770823263823,20.34802629,79.22,79.194,38.56]
[1770823264006,20.34802629,79.22,79.178,0.5]
[1770823264206,20.34802629,79.2,79.165,31.57939723]
[1770823264406,20.34802629,79.21,79.176,12.63008992]
[1770823264608,20.34802629,79.22,79.181,0.5]
[1770823264913,12.62084458,79.234,79.178,12.62977089]
[1770823264914,20.34802629,79.23,79.191,0.5]
[1770823265422,35.86,79.257,79.21,20.34802629]
[1770823265423,20.34802629,79.25,79.21,20.34802629]
[1770823265630,20.34802629,79.24,79.211,0.5]
[1770823265930,20.34802629,79.23,79.198,39.06]
[1770823266128,44.16069445,79.256,79.198,38.56]
[1770823266129,20.34802629,79.22,79.198,38.56]
[1770823266319,20.34802629,79.22,79.184,0.5]
[1770823266511,20.34802629,79.23,79.191,0.5]
[1770823266713,20.34802629,79.21,79.176,0.5]
[1770823266912,20.34802629,79.22,79.181,0.5]
[1770823267113,20.34802629,79.2,79.175,0.2462089]
[1770823267312,20.34802629,79.2,79.175,12.87638143]
[1770823267526,20.34802629,79.22,79.181,0.5]
[1770823267739,20.34802629,79.23,79.191,0.5]
[1770823268343,12.61968118,79.242,79.175,44.45200504]
[1770823268344,35.86,79.249,79.201,0.5]
[1770823268550,12.61177182,79.291,79.23,20.34802629]
[1770823268725,12.61177182,79.291,79.186,4.61729252]
[1770823268726,20.34802629,79.29,79.241,0.5]
[1770823269042,35.84,79.308,79.27,20.34802629]
[1770823269219,20.34802629,79.32,79.281,0.5]
[1770823269617,20.34802629,79.32,79.291,0.5]
[1770823269839,20.34802629,79.31,79.277,38.56]
[1770823270032,20.34802629,79.32,79.281,0.5]
[1770823270228,20.34802629,79.33,79.29,20.34802629]
[1770823270437,50.36965332,79.413,79.321,0.5]
[1770823270700,57.67675435,79.43,79.343,0.5]
[1770823270942,4.61729252,79.411,79.343,0.5]
[1770823271150,94.39186466,79.456,79.371,0.5]
[1770823271364,6.58269853,79.436,79.391,0.5]
[1770823271641,44.04953684,79.456,79.369,38.56]
[1770823271642,245.41884812,79.456,79.369,38.56]
[1770823271832,245.41884812,79.456,79.361,0.5]
[1770823271833,6.58335676,79.443,79.361,0.5]
[1770823272045,245.41884812,79.456,79.361,0.5]
[1770823272250,245.41884812,79.456,79.381,0.5]
[1770823272428,6.58283491,79.455,79.391,0.5]
[1770823272628,4.61729252,79.453,79.383,12.59715556]
[1770823272829,5.36086188,79.448,79.332,31.51299258]
[1770823273051,5.36086188,79.416,79.327,0.5]
[1770823273250,4.61729252,79.408,79.331,0.5]
[1770823273562,4.61729252,79.396,79.331,0.5]
[1770823273854,4.61729252,79.396,79.326,44.12172553]
[1770823273855,4.61729252,79.384,79.319,0.5]
[1770823274035,4.61729252,79.38,79.321,0.5]
[1770823274234,4.61729252,79.375,79.301,0.5]
[1770823274632,50.36064001,79.428,79.341,0.5]
[1770823274842,4.61729252,79.404,79.341,0.5]
[1770823275154,9.9781544,79.423,79.334,0.5]
[1770823275336,9.9781544,79.418,79.336,0.5]
[1770823276651,4.61729252,79.414,79.338,0.5]
[1770823276952,4.61729252,79.41,79.351,0.5]
[1770823277150,36.0,79.413,79.337,94.53344592]
[1770823277151,36.0,79.413,79.361,0.5]
[1770823277858,36.0,79.413,79.337,195.36912158]
[1770823277859,36.02,79.453,79.391,0.5]
[1770823278171,36.02,79.453,79.401,0.5]
[1770823278342,4.61729252,79.45,79.386,0.5]
[1770823278547,4.61729252,79.446,79.386,0.5]
[1770823278739,12.58875069,79.436,79.386,13.09657785]
[1770823278939,44.06062742,79.436,79.387,0.5]
[1770823279261,44.06062742,79.436,79.386,12.59657785]
[1770823279262,12.58275968,79.474,79.421,0.5]
[1770823279557,12.58357867,79.469,79.431,0.5]
[1770823279856,36.0,79.483,79.421,0.5]
[1770823280255,12.58263728,79.475,79.431,0.5]
[1770823280459,12.58510678,79.459,79.412,0.5]
[1770823280641,31.45776231,79.472,79.421,0.5]
[1770823280954,12.58193988,79.479,79.422,13.09096975]
[1770823281257,0.2,79.52,79.45,20.41836815]
[1770823281454,0.2,79.52,79.47,20.41836815]
[1770823281455,0.1,79.52,79.47,20.41836815]
[1770823281661,12.57719251,79.509,79.463,38.44]
[1770823281957,0.1,79.52,79.48,20.41836815]